{"text_format":"3","workbook":"xlsx","n_sheets":1,"sheets":["电器"],"read":"whole","date_system":"1900"}

{"sheet":"电器","index":0,"n_rows":24,"n_cols":16,"rows_kept":24,"merged":[[0,0,0,15],[19,0,19,3],[19,4,19,14],[20,0,20,3],[20,4,20,14],[21,0,21,3],[21,4,21,14],[23,0,23,3]]}
["2024年新建改建路段服务区营运设施设备采购及安装项目电器采购清单"]
[{"$nulls":13},"单位：元"]
["序号","区域","设施设备名称","项目特征","八里河","蔡村","迎河","洪林","临泉西","楚店","新竹","合计数量","单位","单价\n（含税）","合价\n（含税）","参考图片"]
[1,"办公区域","台式电脑","1.品牌：国际品牌，主板、电源等关键部件有原厂商统一品牌标志\n2.CPU ：≥Intel第十二代酷睿  i5-12400处理器 ；\n3.芯片组：Intel B460系列及以上芯片组，主板与整机同品牌；\n4.内存：内存≥8GB GDDR4-2666 内存（出厂标配）；内存插槽≥2个，最大支持16GB；\n5.硬盘：1TB+256GBSSD混合硬盘（出厂标配）；\n6.显卡：Intel高清集成显卡；\n7.声卡：集成；\n8.接口：前置至少2个USB3.0接口，后置不少于4个USB接口，1个千兆网卡端口，1个原生VGA接口，1个原生DP端口；\n9.显示器：显示器≥21.5寸LED显示器，与主机同品牌；\n10.扩展槽：1个PCIe 16x，1个 PCI 插槽，2个 PCIe 1x 插槽；\n11.售后服务：厂家承诺整机三年保修及第二个自然日原厂工程师上门服务（上门服务≥1年，之后为送修），购买后原厂官网可查验证。厂家在当地有维修站（官网可查询），提供厂家大客户专家专人 400 和 800 售后服务热线电话；投标前提供原厂售后服务承诺函和授权原件。\n12.本产品所有组件必须是原厂原配，不允许经销商私自更改产品组件，以免造成兼容性问题。",5,5,5,5,5,5,5,{"$f":"SUM(E4:K4)","v":35},"台",null,{"$f":"L4*N4","v":{"v":0,"d":"0.00"}}]
[2,"办公区域","笔记本电脑","1.品牌：国际品牌，主板、电源等关键部件有原厂商统一品牌标志\n2.CPU ：≥4核8线程，主频≥1.8G Intel或AMD同性能处理器； \n2.内存：≥16G DDR4 2400MHz 内存，具有2个内存扩展槽位  ；\n3.硬盘：≥512G M.2 SSD 硬盘；\n4.网卡：802.11 AC 无线网卡（集成蓝牙功能）；\n5.键盘：防泼溅键盘  ；\n6.摄像头：720P高清摄像头；\n7.电池：内置35WHr以上电池； \n8.接口：2个USB 3.1G1、1个USB3.1 G2 TYPE-C或雷电、1个USB2.0，HDMI、耳麦二合一接口、RJ45 网口；\n9.屏幕：14.0” FHD全高清液晶显示屏（1920x1080）；\n10.系统：预装Windows 10正版操作系统\n11厚度：<20.00mm\n12.售后服务：厂家承诺整机一年保修及第二个自然日原厂工程师上门服务（上门服务≥1年，之后为送修），购买后原厂官网可查验证。厂家在当地有维修站（官网可查询），提供厂家大客户专家专人 400 和 800 售后服务热线电话；投标前提供原厂售后服务承诺函和授权原件。\n13.本产品所有组件必须是原厂原配，不允许经销商私自更改产品组件，以免造成兼容性问题。",1,1,1,1,1,1,1,{"$f":"SUM(E5:K5)","v":7},"台",null,{"$f":"L5*N5","v":{"v":0,"d":"0.00"}}]
[3,"办公区域","彩色激光多功能一体机（公用）","基础信息 \n产品类型彩色激光多功能一体机 \n涵盖功能打印/复印/扫描 \n最大处理幅面A3 \n耗材类型：鼓粉分离\n耗材容量标准容量硒鼓：黑色：1500页，彩色：1200页\n大容量硒鼓：黑色：3100页，彩色：2300页 \n预热时间开机后：≤13秒，从睡眠模式返回：≤6.1秒 \n双面功能自动 \n网络功能支持无线/有线网络打印 \n移动打印 \n打印功能 \n黑白打印速度单面：21ppm，双面：12.7ppm \n彩色打印速度单面：21ppm，双面：12.7ppm \n打印分辨率1200×1200dpi，600×600dpi \n首页打印时间黑白≤10.4秒，彩色≤10.5秒 \n打印负荷2-5万页：大致3万页 \n打印其它性能U盘直接打印：支持JPEG，TIFF，PDF格式文件\n特殊打印功能：安全打印，多合一打印，手册打印，缩放打印，海报打印，水印打印，组合打印，分套打印，分组打印，省墨打印等 \n复印功能 \n复印速度22ppm \n复印分辨率600×600dpi \n首页复印时间黑白≤6.9秒，彩色≤9.8秒 \nN合1复印将2页或4页内容缩小复印到1页上 \n证卡复印ID卡复印 \n缩放范围25-400%（最小调整量为1%） \n复印其它性能特殊复印功能：缩放复印，分套复印，护照复印，消除黑框等 \n扫描功能 \n扫描控制器标准配置 \n扫描元件CIS \n光学分辨率稿台玻璃：600dpi×600dpi\n自动输稿器：300dpi×300dpi \n扫描尺寸稿台玻璃：216×297mm（最大），自动输稿器：216×355.6mm（最大） \n扫描格式JPEG，PDF，TIFF \n扫描其它性能支持网络扫描，支持扫描至U盘，速度30张/分钟\n存储格式（扫描至U盘）：PDF，PDF（压缩），PDF（压缩/OCR），PDF（OCR），JPEG，TIFF \n介质规格 \n介质类型普通纸，薄纸，再生纸，彩色纸，厚纸，铜版纸，标签纸，明信片，信封 \n介质尺寸A3，A4，A5，B5，A5横向，LTR，LGL，STMT，EXEC，16K，明信片，Index Card，信封，自定义尺寸（最小76.2x127.0mm-最大216.0x355.6mm）等 \n介质重量薄纸：60g/㎡，普通纸：61-105g/㎡，再生纸：61-82g/㎡，彩色纸：61-69g/㎡，厚纸：106-163g/㎡，铜版纸：100-200g/㎡ \n供纸盒容量标配：480页，多功能纸盒：1页 \n输出容量100页 \n自动供纸器50页以上自动进稿器：支持，达到50页 \n其它参数 \n显示屏5英寸 \n内存 1GB \n接口类型10Base-T/100Base-TX/1000Base-T（RJ-45网络接口），USB 2.0，Wi-Fi 802.11b/g/n\n",1,1,1,1,1,1,1,7,"台",null,{"v":0,"d":"0.00"}]
[4,"办公区域","黑白激光打印机（桌面用）","类型：黑白激光\n最大打印幅面：A4，支持自动双面打印\n支持纸张尺寸：A4,A5,B5,LETTER(不小于A6）\n内存：标配/最大：64MB\n连接性：高速USB2.0端口；无线802.11a/b/g/n(2.4/5GHz)；以太网端口10/100BT\n耗材类型：鼓粉分离\n打印速度：20页/分钟\n纸张处理：进纸盒：250页；出纸盒：100页\n电源类型：内置电源；电源要求：220伏输入电压；220-240伏交流电，50/60hz",2,2,2,2,2,2,2,14,"台",null,{"v":0,"d":"0.00"}]
[5,"办公区域","验钞机","屏幕数量：双屏幕  等级：B级  语音提示：是   鉴伪方式：磁性检测：安全线检测：荧光检测：红外鉴伪：幅画鉴伪；币种：人名币：支持复读：",2,2,2,2,2,2,2,14,"台",null,{"v":0,"d":"0.00"}]
[6,"办公区域","碎纸机","入口个数：2个（双刀双入口）\n入口宽度：220mm（光盘入口：30mm）；；\n碎纸张数：18张(70g/m²A4)；\n碎断尺寸：4*35 mm；\n保密等级：4级（依据德国碎纸标准DIN66399）；\n可碎介质：纸、信用卡、订书针、大头针、回形针、光盘；\n碎纸速度：2.2 m/min；\n机器噪音：<58dB;\n连续碎纸时间：120分钟；\n垃圾桶容积30升；\n工作电源：220VAC/50Hz；\n工作功率：≤350W；\n工作电流：2A；\n产品尺寸：380x320x585mm；\n产品净重：15kg\n智控功能：过热/过载保护、自动进退纸功能、手动进纸/退纸功能、自动防卡纸功能、满纸功能。\n涡轮风冷专利技术 连续碎纸时间2小时 \n获国家保密测评中心涉密产品资质认证\n",2,2,2,2,2,2,2,14,"台",null,{"v":0,"d":"0.00"}]
[7,"办公区域","投影仪","1、投影技术：3LCD ；\n2、投影机亮度：3000ISO流明，光源类型：汞灯光源；\n3、灯泡寿命≥20000H(节能模式)；\n4、投射比：1.19~1.61，变焦倍数：1.35倍；\n5、四角校正技术，智能辅助校正；\n6、光学分辨率：1920*1080dpi，兼容1080p、2K、4K分辨率；\n7.光源功率：188w；\n8.投影焦躁类型：长焦\n*7、接口：HDMI x 2；USB A x 2；RJ45 x 1；SPDIF x 1；音频输出x1;蓝牙4:2 x1；无线（可选组件），支持DLNA; Screen Mirror; Airplay\n8、WIFI/蓝牙自动搜索，一键直连；\n9、自带声音输出，功率1W；遥控器语音遥控",1,1,1,1,1,1,1,7,"台",null,{"v":0,"d":"0.00"}]
[8,"办公区域","扫描仪","产品类型 馈纸式\n最大幅面 A4\n扫描元件 CIS×2（上下各一个）\n光学分辨率 600dpi\n扫描速度 A4，纵向：\n自动模式(默认)：单面/双面30ppm\n普通模式(彩色/灰度150dpi，黑白300dpi)：单面/双面30ppm\n精细模式(彩色/灰度200dpi，黑白400dpi)：单面/双面30ppm\n超精细模式(彩色/灰度300dpi，黑白600dpi)：单面/双面30ppm\n最佳模式(彩色/灰度600dpi，黑白1200dpi)：单面/双面8ppm\n接口类型 USB3.1 Gen1，USB3.0，USB2.0，USB1.1（连接方式：Type-B）\nWiFi IEEE802.11a/b/g/n/ac，2.4/5GHz\n性能参数\n扫描光源 RGB三色（红/绿/蓝）\n扫描模式 彩色、灰阶、黑白、自动（自动检测彩色、灰阶、黑白）\n送稿器容量 50页（A4，80g/m2）\n自动进纸器 支持\n介质尺寸 最小：50.8×50.8mm，最大：216×360mm\n手动扫描：A3，B4，279×432mm\n长页扫描：3000mm（863mm-32bit）\n扫描至移动端：863mm（双面），1726mm（单面）\n名片：0.76mm及以下（可兼容ISO 7 8 10 ID-1尺寸，包括有浮雕花纹的卡片）\n介质重量 40-209g/m2，A8及以下：128-209g/m2\n双面扫描 支持\n保修信息 保修政策全国联保，享受三包服务，质保时间 1年",1,1,1,1,1,1,1,7,"台",null,{"v":0,"d":"0.00"}]
[9,"生活电器","电视","1、电视机尺寸：40英寸\n2、显示技术：LED背光源，液晶面板达到A+级\n3、物理分辨率：≥3840*2160\n4、RAM:2GB；ROM:16GB\n5、接口要求：电源输入*1，调试端口*1，网口*1，USB2.0*2，音视频输入*1，HDMI(ARC)*1，HDMI*1，有线/天线输入*1，数字音频输出（同轴）×1；所有接口必须为原厂一体化接口，不接受外接转换。\n6、低功耗，整机功率≤110W；\n7、能效等级：2级\n8、包含所有的安装及辅材",15,15,15,15,15,15,35,125,"台",null,{"v":0,"d":"0.00"}]
[10,"公共区域电器","母婴室温奶器","容量≥700ml；功率：200w；尺寸≥20*15*25；电压：220v",2,2,2,2,2,2,2,14,"台",null,{"v":0,"d":"0.00"}]
[11,"公共区域电器","母婴室烧水壶","容量1.5L；电压220v；功率1500W；频率：50HZ",2,2,2,2,2,2,2,14,"台",null,{"v":0,"d":"0.00"}]
[12,"公共区域电器","母婴室微波炉","容量≥21L；输出功率：700w；额定电压/频率：220v/50HZ；转盘直径：≥245mm；尺寸：≥460*340*280；炉腔尺寸：≥315*325*200",2,2,2,2,2,2,2,14,"台",null,{"v":0,"d":"0.00"}]
[13,"公共区域电器","母婴室净水器","1、尺寸≥300*330*1030；2、额定电压/频率：220v-50hz；3、额定功率：2110w；4、制热水能力：≥（20L/h≥30℃）",2,2,2,2,2,2,2,14,"台",null,{"v":0,"d":"0.00"}]
[14,"公共区域电器","母婴室电视机","商品产地：中国大陆                                            \n屏幕尺寸：70-77英寸                                                  \n电视类型：4K超清                                                \n分辨率：3840*2160\n推荐观看距离：3.5-4m摄像头：无摄像头                     \n护眼电视：是                                                  \n刷屏率：60Hz                                                            \n能效等级：四级能效\n",2,2,2,2,2,2,2,14,"台",null,{"v":0,"d":"0.00"}]
[15,"公共区域电器","母婴室消毒柜","类型：立式消毒柜                                              商品毛重：18.5kg消毒星级：二星级层数：3层容量：81-100L类型：立式消毒柜消毒方式：高温，中温功能：烘干，上下分层",2,2,2,2,2,2,2,14,"台",null,{"v":0,"d":"0.00"}]
[16,"公共区域电器","母婴室冰箱","商品类型：冰箱小型双开门家用家电迷你小冰箱风冷无霜/节能直冷二门超薄三开门省电无霜冰箱 商品毛重：40.0kg商品产地：中国大陆能效等级：三级能效变频/定频：定频高度：100.1-140cm面板材质：PCM彩涂板制冷方式：直冷宽度：60cm以下总容积：100-149L主色系：银色系门款式：双门放置方式：独立式控温方式：机械控温深度：50.1-55cm",2,2,2,2,2,2,2,14,"台",null,{"v":0,"d":"0.00"}]
["总报价（1-193项含税金额）",{"$nulls":3},{"$f":"SUM(O4:O19)","v":{"v":0,"d":"0.00"}}]
["增值税税率",{"$nulls":3},{"v":0.13,"d":"13.00%"}]
["评审价（1-193项不含税金额）",{"$nulls":3},{"$f":"E20/(1+E21)","v":{"v":0,"d":"0.00"}}]
[]
["报价保留两位小数"]